bitfinex-derivatives/quotes_BTCF0:USTF0_20210707
["timestamp","ask_amount","ask_price","bid_price","bid_amount"]
[1625654999876,2.17296506,34602.0,34601.0,4.83177838]
[1625655000119,2.17296506,34602.0,34601.0,4.49225962]
[1625655000239,2.17296506,34602.0,34601.0,4.81890962]
[1625655000362,1.17012238,34602.0,34601.0,5.49792505]
[1625655000602,0.50150489,34602.0,34601.0,6.51644612]
[1625655000841,0.83569968,34602.0,34601.0,6.51644612]
[1625655001079,0.50150489,34602.0,34601.0,6.51644612]
[1625655001560,1.16979925,34602.0,34601.0,6.51644612]
[1625655002707,1.16979925,34602.0,34601.0,6.18979612]
[1625655002825,4.6870027,34602.0,34601.0,3.97807544]
[1625655004987,4.6870027,34602.0,34601.0,0.24057544]
[1625655005348,6.19050167,34602.0,34601.0,0.24057544]
[1625655005709,4.6870027,34602.0,34601.0,0.24057544]
[1625655006128,6.18990096,34602.0,34601.0,0.24057544]
[1625655009257,4.6870027,34602.0,34601.0,0.49573997]
[1625655009497,4.6870027,34602.0,34601.0,1.09110879]
[1625655009979,4.6870027,34602.0,34601.0,0.75089545]
[1625655010098,4.6870027,34602.0,34601.0,0.75579095]
[1625655010522,4.6870027,34602.0,34601.0,1.09600705]
[1625655010702,4.6870027,34602.0,34601.0,0.75090149]
[1625655010942,4.6870027,34602.0,34601.0,0.32563306]
[1625655011181,4.6870027,34602.0,34601.0,0.49574708]
[1625655011421,4.6870027,34602.0,34601.0,0.24057544]
[1625655011663,6.19128805,34602.0,34601.0,0.24057544]
[1625655015271,4.6870027,34602.0,34601.0,0.24057544]
[1625655015513,6.19512662,34602.0,34601.0,0.24057544]
[1625655019243,6.19512662,34602.0,34601.0,0.24546726]
[1625655019366,6.19512662,34602.0,34601.0,0.50069463]
[1625655019367,4.6870027,34602.0,34601.0,0.50069463]
[1625655019604,4.6870027,34602.0,34601.0,4.99909463]
[1625655019728,4.6870027,34602.0,34601.0,5.33939762]
[1625655020148,4.6870027,34602.0,34601.0,4.99909463]
[1625655020388,4.6870027,34602.0,34601.0,5.25436228]
[1625655021350,4.6870027,34602.0,34601.0,5.59473579]
[1625655022011,4.6870027,34602.0,34601.0,5.25439235]
[1625655022855,4.6870027,34602.0,34601.0,5.93512144]
[1625655024056,4.6870027,34602.0,34601.0,6.95625904]
[1625655024296,4.6870027,34602.0,34601.0,5.93512144]
[1625655024657,4.6870027,34602.0,34601.0,6.95630588]
[1625655025798,8.6847027,34602.0,34601.0,6.95630588]
[1625655026341,8.6847027,34602.0,34601.0,5.93512144]
[1625655026638,8.6847027,34602.0,34601.0,6.95639569]
[1625655026818,8.6847027,34602.0,34601.0,2.45799569]
[1625655026944,8.9926027,34602.0,34601.0,2.45799569]
[1625655027059,8.9926027,34602.0,34601.0,1.43672144]
[1625655027240,8.9926027,34602.0,34601.0,1.43182962]
[1625655027422,10.50001567,34602.0,34601.0,0.32568912]
[1625655027539,10.50001567,34602.0,34601.0,0.24057544]
[1625655028268,10.50001567,34602.0,34599.0,1.00651518]
[1625655028503,6.1999049,34600.0,34599.0,0.9214]
[1625655028746,6.1999049,34600.0,34598.0,0.59582598]
[1625655028866,6.21315977,34600.0,34598.0,0.59582598]
[1625655029046,6.20140406,34599.0,34598.0,0.25535763]
[1625655029165,6.21466038,34599.0,34598.0,0.25535763]
[1625655029404,6.45523582,34599.0,34598.0,0.25535763]
[1625655030486,6.45523582,34599.0,34598.0,0.26024923]
[1625655030729,6.45523582,34599.0,34598.0,0.08512346]
[1625655031028,6.45523582,34599.0,34597.0,0.24057544]
[1625655031270,6.19351306,34598.0,34597.0,0.24057544]
[1625655031390,6.4340885,34598.0,34597.0,0.24057544]
[1625655031510,6.44734243,34598.0,34597.0,0.24057544]
[1625655032774,8.12223221,34598.0,34597.0,0.24057544]
[1625655033070,6.44734243,34598.0,34597.0,0.24057544]
[1625655036136,9.96244243,34598.0,34597.0,0.24057544]
[1625655037819,6.44734243,34598.0,34597.0,0.24057544]
[1625655039202,6.44734243,34598.0,34597.0,0.45098544]
[1625655041005,11.14834243,34598.0,34597.0,0.45098544]
[1625655041122,11.14834243,34598.0,34597.0,0.24057544]
[1625655041546,11.14834243,34598.0,34597.0,0.48115088]
[1625655044731,6.44734243,34598.0,34597.0,0.48115088]
[1625655044858,6.44734243,34598.0,34597.0,0.74803088]
[1625655045093,4.94088912,34598.0,34597.0,0.83310319]
[1625655045574,4.94088912,34598.0,34597.0,1.00324775]
[1625655045693,4.92763519,34598.0,34597.0,1.00324775]
[1625655045873,4.92763519,34598.0,34597.0,1.34353448]
[1625655046053,4.92763519,34598.0,34597.0,1.25846217]
[1625655046473,4.92763519,34598.0,34597.0,1.59880161]
[1625655046595,4.92763519,34598.0,34597.0,1.08831761]
[1625655046772,4.92763519,34598.0,34597.0,1.25848697]
[1625655047315,4.92763519,34598.0,34597.0,0.73640718]
[1625655047557,6.44470967,34598.0,34597.0,0.48115088]
[1625655048577,6.74727967,34598.0,34597.0,0.48115088]
[1625655049239,6.83417967,34598.0,34597.0,0.48115088]
[1625655049358,6.74727967,34598.0,34597.0,0.24057544]
[1625655058019,6.44470967,34598.0,34597.0,0.24057544]
[1625655058862,6.44470967,34598.0,34597.0,0.75095176]
[1625655058863,4.70030994,34598.0,34597.0,0.75095176]
[1625655059100,3.36122174,34598.0,34597.0,2.45694598]
[1625655059281,3.34797155,34598.0,34597.0,2.45694598]
[1625655059463,3.34797155,34598.0,34597.0,3.64762404]
[1625655059464,0.52664845,34598.0,34597.0,3.64762404]
[1625655059640,0.52664845,34598.0,34597.0,5.00835035]
[1625655059641,0.50029713,34598.0,34597.0,5.00835035]
[1625655059760,0.50029713,34598.0,34597.0,5.48950123]
[1625655059881,0.25043946,34599.0,34597.0,5.48950123]
[1625655060123,0.0835354,34599.0,34598.0,3.35825165]
[1625655060303,0.25046187,34600.0,34598.0,3.35825165]
[1625655060423,0.25046187,34600.0,34598.0,3.36314562]
[1625655060604,0.25046187,34600.0,34599.0,4.9501]
[1625655060725,0.58426277,34601.0,34599.0,8.01638936]
[1625655060903,0.58426277,34601.0,34600.0,3.06139354]
[1625655061267,0.58426277,34601.0,34600.0,3.06628738]
[1625655061685,0.50069299,34601.0,34600.0,3.06628738]
[1625655062409,0.58432379,34601.0,34600.0,3.06628738]
[1625655062949,0.0836308,34601.0,34600.0,3.06628738]
[1625655063430,0.58430323,34602.0,34600.0,3.06628738]
[1625655063609,0.58430323,34602.0,34601.0,3.06073392]
[1625655063850,0.58430323,34602.0,34601.0,3.06562738]
[1625655064152,0.58428023,34603.0,34601.0,3.06562738]
[1625655064394,0.58428023,34603.0,34602.0,3.05964653]
[1625655064634,0.58428023,34603.0,34602.0,3.06453989]
[1625655065536,0.25052495,34603.0,34602.0,3.06453989]
[1625655065839,0.25052495,34603.0,34602.0,3.30511533]
[1625655066138,0.5844282,34603.0,34602.0,3.30511533]
[1625655066380,0.08356391,34603.0,34602.0,3.30511533]
[1625655066618,0.25059195,34603.0,34602.0,3.30511533]
[1625655067099,0.08356391,34603.0,34602.0,3.30511533]
[1625655067579,0.50078444,34603.0,34602.0,1.94527243]
[1625655067819,0.83439014,34603.0,34602.0,1.94527243]
[1625655067940,0.83439014,34603.0,34602.0,1.94037907]
[1625655068060,0.50058945,34603.0,34602.0,0.75051653]
[1625655068722,1.66692166,34603.0,34602.0,0.49544746]
[1625655069023,2.99958995,34603.0,34602.0,0.24057544]
[1625655069682,3.28244995,34603.0,34602.0,0.24057544]
[1625655069863,3.52302539,34603.0,34602.0,0.24057544]
[1625655070463,2.1903571,34603.0,34602.0,0.32553513]
[1625655070643,2.1903571,34603.0,34602.0,0.83528768]
[1625655070763,1.9074971,34603.0,34602.0,0.83528768]
[1625655070884,1.9074971,34603.0,34602.0,1.09014963]
[1625655071185,1.9074971,34603.0,34602.0,0.7503146]
[1625655071303,2.1809771,34603.0,34602.0,0.7503146]
[1625655071485,3.51292199,34603.0,34602.0,0.24057544]
[1625655074794,2.1809771,34603.0,34602.0,0.24057544]
[1625655075216,2.1809771,34603.0,34602.0,0.32552712]
[1625655075701,1.9074971,34603.0,34602.0,0.49541761]
[1625655077200,1.9074971,34603.0,34602.0,0.32552712]
[1625655077379,1.9074971,34603.0,34602.0,0.24057544]
[1625655079913,3.22939685,34603.0,34602.0,0.24057544]
[1625655080032,3.22939685,34603.0,34599.0,6.04010764]
[1625655080033,3.22939685,34603.0,34599.0,5.19067544]
[1625655080456,1.65183099,34600.0,34599.0,5.19067544]
[1625655086163,2.97485121,34600.0,34599.0,5.19067544]
[1625655087126,2.98809629,34600.0,34599.0,5.19067544]
[1625655087368,1.66507607,34600.0,34599.0,5.19067544]
[1625655088088,2.98930964,34600.0,34599.0,5.19067544]
[1625655088272,1.66507607,34600.0,34599.0,5.19067544]
[1625655089592,2.65886125,34600.0,34599.0,5.19067544]
[1625655089831,2.64561617,34600.0,34599.0,5.70532356]
[1625655090009,2.64561617,34600.0,34599.0,5.45044721]
[1625655091391,2.64561617,34600.0,34599.0,5.2756346]
[1625655091392,2.65886892,34600.0,34599.0,5.2756346]
[1625655091994,2.65886892,34600.0,34599.0,5.28052607]
[1625655092235,2.64561617,34600.0,34599.0,5.28052607]
[1625655092358,2.64561617,34600.0,34599.0,5.70534289]
[1625655092657,1.48940054,34600.0,34599.0,5.70537233]
[1625655095483,1.50265319,34600.0,34599.0,5.70537233]
[1625655096804,1.50265319,34600.0,34599.0,6.72521982]
[1625655096924,1.50265319,34600.0,34599.0,6.96403982]
[1625655097105,1.48940054,34600.0,34599.0,6.96403982]
[1625655097287,0.49561536,34600.0,34599.0,6.96403982]
[1625655097586,3.92847544,34603.0,34599.0,5.43438691]
[1625655097827,0.01326368,34600.0,34599.0,5.43438691]
[1625655097949,0.51050688,34600.0,34599.0,5.19556691]
[1625655098069,0.4972432,34600.0,34599.0,5.19556691]
[1625655098188,0.4972432,34600.0,34599.0,6.72531347]
[1625655098369,0.51050689,34600.0,34599.0,6.72531347]
[1625655100292,1.50415512,34600.0,34599.0,6.72531347]
[1625655100650,1.50415512,34600.0,34599.0,5.70548243]
[1625655100953,1.50415512,34600.0,34599.0,6.0454679]
[1625655100954,2.66316956,34600.0,34599.0,6.0454679]
[1625655101372,2.66316956,34600.0,34599.0,5.70554527]
[1625655101972,2.66316956,34600.0,34599.0,5.79054236]
[1625655102154,1.50415512,34600.0,34599.0,5.70557432]
[1625655104017,2.66578441,34600.0,34599.0,5.70557432]
[1625655107386,1.50415512,34600.0,34599.0,6.72585274]
[1625655112917,1.50415512,34600.0,34599.0,5.19556691]
[1625655113097,1.50415512,34600.0,34599.0,6.72681254]
[1625655114180,1.50415512,34600.0,34599.0,7.91783448]
[1625655114421,2.66850378,34600.0,34599.0,7.91783448]
[1625655115505,2.66850378,34600.0,34599.0,6.72681254]
[1625655116165,2.98504378,34600.0,34599.0,6.72681254]
[1625655116407,2.98504378,34600.0,34599.0,1.77671254]
[1625655116768,4.3157247,34600.0,34599.0,1.77671254]
[1625655116886,4.3157247,34600.0,34599.0,0.75588212]
[1625655117006,8.3859247,34600.0,34599.0,0.75588212]
[1625655117847,8.3859247,34600.0,34599.0,1.09640965]
[1625655118087,8.3859247,34600.0,34599.0,0.84139803]
[1625655118568,8.3859247,34600.0,34599.0,0.58599444]
[1625655118688,8.3859247,34600.0,34599.0,4.94009444]
[1625655118809,8.3859247,34600.0,34599.0,5.11048487]
[1625655119650,9.05158547,34600.0,34599.0,6.81348793]
[1625655120553,9.05158547,34600.0,34599.0,5.79168609]
[1625655121331,9.05158547,34600.0,34599.0,6.81348369]
[1625655125116,4.98138547,34600.0,34599.0,6.81348369]
[1625655126618,4.98138547,34600.0,34599.0,8.00672523]
[1625655131246,4.98138547,34600.0,34599.0,3.65262523]
[1625655131787,6.48133681,34600.0,34599.0,2.45938369]
[1625655131906,10.69213681,34600.0,34599.0,2.45938369]
[1625655132027,10.69213681,34600.0,34599.0,1.43758609]
[1625655134195,10.69213681,34600.0,34599.0,0.75638487]
[1625655135096,10.69213681,34600.0,34599.0,1.09735768]
[1625655135396,10.69213681,34600.0,34599.0,1.09246621]
[1625655135516,10.69213681,34600.0,34599.0,0.58154825]
[1625655135876,10.69213681,34600.0,34599.0,0.75201799]
[1625655136356,10.93271225,34600.0,34599.0,0.75201799]
[1625655136658,10.93271225,34600.0,34599.0,0.83725566]
[1625655137800,10.93271225,34600.0,34599.0,0.49628285]
[1625655138705,10.93271225,34600.0,34599.0,0.83719801]
[1625655139065,10.93271225,34600.0,34599.0,0.49628285]
[1625655139307,10.93271225,34600.0,34599.0,0.83719882]
[1625655139971,10.93271225,34600.0,34599.0,0.49628285]
[1625655140453,10.93271225,34600.0,34599.0,0.83716286]
[1625655140936,10.93271225,34600.0,34599.0,1.43364015]
[1625655141897,10.93271225,34600.0,34599.0,0.75188889]
[1625655142136,10.93271225,34600.0,34599.0,1.09276141]
[1625655147305,10.93271225,34600.0,34599.0,0.58144796]
[1625655148448,10.93271225,34600.0,34599.0,1.09274172]
[1625655148810,6.72191225,34600.0,34599.0,1.09274172]
[1625655148989,6.72191225,34600.0,34599.0,1.09763545]
[1625655149170,6.72191225,34600.0,34599.0,1.43846952]
[1625655149290,6.72191225,34600.0,34599.0,5.12056952]
[1625655150376,5.22196091,34600.0,34599.0,6.38367059]
[1625655151097,6.72447968,34600.0,34599.0,5.36114496]
[1625655151336,5.22196091,34600.0,34599.0,5.36114496]
[1625655151457,10.30746091,34600.0,34599.0,5.36114496]
[1625655153502,10.30746091,34600.0,34599.0,6.38367618]
[1625655153863,5.22196091,34600.0,34599.0,6.38367618]
[1625655153981,4.98138547,34600.0,34599.0,6.60392618]
[1625655154103,4.66484547,34600.0,34599.0,6.60392618]
[1625655154582,4.65158178,34600.0,34599.0,6.60392618]
[1625655154883,2.1565522,34600.0,34599.0,9.15982978]
[1625655155005,0.50231909,34600.0,34599.0,10.69326439]
[1625655155246,0.58634718,34601.0,34599.0,10.69326439]
[1625655155544,0.08385953,34601.0,34600.0,5.28156835]
[1625655155722,0.08385953,34601.0,34600.0,5.28646133]
[1625655155962,0.25143212,34601.0,34600.0,5.28646133]
[1625655156204,0.25131971,34602.0,34600.0,5.28646133]
[1625655156504,0.25131971,34602.0,34601.0,5.52386718]
[1625655156923,0.08382901,34602.0,34601.0,5.52386718]
[1625655157763,0.58624122,34603.0,34601.0,5.52386718]
[1625655157885,0.25142713,34603.0,34601.0,5.52386718]
[1625655158065,0.25142713,34603.0,34602.0,5.28089707]
[1625655159813,0.08386265,34603.0,34602.0,3.74915376]
[1625655160111,0.50219661,34604.0,34602.0,3.74915376]
[1625655160231,0.50190689,34605.0,34602.0,3.74915376]
[1625655160353,0.12496032,34606.0,34602.0,3.74915376]
[1625655160472,0.12496032,34606.0,34605.0,0.48115088]
[1625655160655,2.1691098,34612.0,34605.0,4.56363023]
[1625655160773,0.9973,34612.0,34611.0,2.44901127]
[1625655160892,0.9973,34612.0,34611.0,2.72699127]
[1625655161311,0.9973,34612.0,34611.0,2.73188247]
[1625655161552,0.9973,34612.0,34611.0,2.72699127]
[1625655161672,0.9973,34612.0,34611.0,2.79869127]
[1625655162273,0.9973,34612.0,34611.0,1.54033319]
[1625655162452,0.9973,34612.0,34611.0,2.02148407]
[1625655166785,0.9973,34612.0,34611.0,2.09318407]
[1625655169189,0.9973,34612.0,34611.0,0.90253088]
[1625655175495,0.9973,34612.0,34611.0,0.62455088]
[1625655181508,0.9973,34612.0,34611.0,0.62944185]
[1625655190338,1.01054729,34612.0,34611.0,0.62944185]
[1625655190638,1.01054729,34612.0,34611.0,5.65314185]
[1625655191362,0.9973,34612.0,34611.0,5.65314185]
[1625655191840,0.9973,34612.0,34611.0,6.6688301]
[1625655193340,0.9973,34612.0,34611.0,7.85370201]
[1625655200914,0.9973,34612.0,34611.0,6.6688301]
[1625655203260,0.9973,34612.0,34611.0,6.66393913]
[1625655203503,0.9973,34612.0,34611.0,6.6688265]
[1625655203801,0.9973,34612.0,34611.0,7.85550403]
[1625655207530,0.9973,34612.0,34611.0,9.21256487]
[1625655208430,0.9973,34612.0,34611.0,10.74003582]
[1625655208610,0.9973,34612.0,34611.0,11.17120782]
[1625655209390,0.9973,34612.0,34611.0,11.25820782]
[1625655210173,0.9973,34612.0,34611.0,12.95613931]
[1625655210956,0.9973,34612.0,34611.0,11.25820782]
[1625655211798,0.9973,34612.0,34611.0,11.17120782]
[1625655212041,0.9973,34612.0,34611.0,12.87020028]
[1625655213424,0.9973,34612.0,34611.0,11.17120782]
[1625655213965,0.9973,34612.0,34611.0,12.8716362]
[1625655214326,0.9852,34612.0,34611.0,12.8716362]
[1625655215049,0.9852,34612.0,34611.0,11.17120782]
[1625655220459,0.9852,34612.0,34611.0,11.85172546]
[1625655222928,0.9852,34612.0,34611.0,11.93752546]
[1625655223050,1.20033,34612.0,34611.0,11.93752546]
[1625655223650,1.20033,34612.0,34611.0,11.85172546]
[1625655223891,1.20033,34612.0,34611.0,6.39685346]
[1625655224012,1.20033,34612.0,34611.0,4.86938251]
[1625655224250,2.87934069,34612.0,34611.0,4.86938251]
[1625655224430,6.74314069,34612.0,34611.0,3.51232167]
[1625655224673,7.91808106,34612.0,34611.0,3.51232167]
[1625655225932,7.91808106,34612.0,34611.0,2.32564414]
[1625655226295,7.91808106,34612.0,34611.0,3.51666446]
[1625655229295,9.25970445,34612.0,34611.0,2.32075677]
[1625655230137,7.91808106,34612.0,34611.0,2.32075677]
[1625655230377,4.05428106,34612.0,34611.0,3.51643693]
[1625655230622,2.87934069,34612.0,34611.0,3.51643693]
[1625655230858,4.05325486,34612.0,34611.0,3.51643693]
[1625655231277,4.05325486,34612.0,34611.0,3.51155285]
[1625655231580,4.05325486,34612.0,34611.0,3.51643667]
[1625655231581,2.87934069,34612.0,34611.0,3.51643667]
[1625655232359,2.87934069,34612.0,34611.0,4.87726453]
[1625655233201,1.65683785,34612.0,34611.0,4.87726453]
[1625655233439,2.66433762,34612.0,34611.0,4.87726453]
[1625655234641,1.65683785,34612.0,34611.0,4.87726453]
[1625655235302,2.66419054,34612.0,34611.0,4.87726453]
[1625655236022,2.66419054,34612.0,34611.0,3.51643667]
[1625655236383,2.66419054,34612.0,34611.0,3.51155285]
[1625655238969,2.66419054,34612.0,34611.0,3.51643764]
[1625655239090,2.66419054,34612.0,34611.0,4.87726125]
[1625655240710,0.9852,34612.0,34611.0,4.87726125]
[1625655240953,0.9852,34612.0,34611.0,6.4080346]
[1625655241493,0.9852,34612.0,34611.0,6.8385716]
[1625655242694,0.9852,34612.0,34611.0,8.53916605]
[1625655246661,0.9852,34612.0,34611.0,6.8385716]
[1625655250147,0.9852,34612.0,34611.0,8.53868031]
[1625655250387,0.9852,34612.0,34611.0,9.04868326]
[1625655254117,0.9852,34612.0,34611.0,7.34857455]
[1625655254597,0.9852,34612.0,34611.0,9.04832987]
[1625655254899,0.9852,34612.0,34611.0,7.34857455]
[1625655257968,0.9852,34612.0,34611.0,9.04798521]
[1625655259951,0.9852,34612.0,34611.0,7.34857455]
[1625655260855,0.9852,34612.0,34611.0,9.04787166]
[1625655264758,0.9852,34612.0,34611.0,7.34857455]
[1625655267283,0.9852,34612.0,34611.0,9.04765043]
[1625655267580,0.9852,34612.0,34611.0,7.34857455]
[1625655268062,0.9852,34612.0,34611.0,9.04766383]
[1625655268361,0.9852,34612.0,34611.0,7.34857455]
[1625655272447,0.9852,34612.0,34611.0,7.43417455]
[1625655272629,0.9852,34612.0,34611.0,7.34857455]
[1625655275456,0.9852,34612.0,34611.0,9.04766697]
[1625655275997,0.9852,34612.0,34611.0,9.05619576]
[1625655277735,0.7972,34612.0,34611.0,9.05619576]
[1625655277915,0.5972,34612.0,34611.0,9.05619576]
[1625655282539,0.5972,34612.0,34611.0,9.55619576]
[1625655284648,0.5972,34612.0,34611.0,11.59395551]
[1625655285429,0.5972,34612.0,34611.0,11.68095551]
[1625655285548,0.5972,34612.0,34611.0,11.59395551]
[1625655286930,0.5972,34612.0,34611.0,11.11280463]
[1625655287354,0.9195,34625.0,34611.0,11.19880463]
[1625655287473,0.9195,34625.0,34623.0,0.96230176]
[1625655287656,0.8328,34625.0,34624.0,1.69784706]
[1625655287773,0.6307,34625.0,34624.0,4.75397177]
[1625655287894,0.84388002,34629.0,34624.0,6.72297518]
[1625655288135,0.33758575,34629.0,34628.0,4.75372021]
[1625655288377,0.33758575,34629.0,34628.0,8.77592021]
[1625655288624,0.33758575,34629.0,34628.0,8.780796]
[1625655288737,0.84463455,34631.0,34628.0,8.780796]
[1625655288857,0.84463455,34631.0,34628.0,9.214463]
[1625655288978,1.18218443,34635.0,34628.0,9.214463]
[1625655288979,0.33823654,34635.0,34630.0,6.61688706]
[1625655289097,0.26723654,34635.0,34630.0,6.61688706]
[1625655289217,1.18367458,34637.0,34634.0,4.75431527]
[1625655289458,1.18367458,34637.0,34636.0,3.39592142]
[1625655289580,1.18367458,34637.0,34636.0,4.11764774]
[1625655289699,1.18367458,34637.0,34636.0,8.65261274]
[1625655289820,1.01437155,34638.0,34636.0,8.65261274]
[1625655289821,0.50692616,34638.0,34636.0,8.65261274]
[1625655289941,0.50692616,34638.0,34636.0,8.65748755]
[1625655290060,0.50692616,34638.0,34637.0,3.39289851]
[1625655290181,0.50692616,34638.0,34637.0,3.67502851]
[1625655290300,0.50692616,34638.0,34637.0,3.67990335]
[1625655290540,0.50692616,34638.0,34637.0,3.67502851]
[1625655290782,1.18291602,34638.0,34637.0,2.48751403]
[1625655291082,2.19670047,34638.0,34637.0,2.48751403]
[1625655291502,2.19670047,34638.0,34637.0,2.72808947]
[1625655291744,2.19670047,34638.0,34637.0,1.71021992]
[1625655291864,2.19670047,34638.0,34637.0,1.42808992]
[1625655291986,3.37808216,34638.0,34637.0,0.24057544]
[1625655292225,4.72762772,34638.0,34637.0,0.24057544]
[1625655293605,3.37808216,34638.0,34637.0,0.24057544]
[1625655293854,4.72680698,34638.0,34637.0,0.24057544]
[1625655294388,4.72680698,34638.0,34634.0,0.50883998]
[1625655294507,2.19217967,34635.0,34634.0,0.50883998]
[1625655295588,2.67333055,34635.0,34634.0,0.50883998]
[1625655297033,3.85351705,34635.0,34634.0,0.50883998]
[1625655298477,2.67333055,34635.0,34634.0,1.18749555]
[1625655298717,3.85437897,34635.0,34634.0,1.18749555]
[1625655299317,2.67333055,34635.0,34634.0,2.20584682]
[1625655299736,1.66162016,34635.0,34634.0,2.20584682]
[1625655300399,0.98709037,34635.0,34634.0,3.39366166]
[1625655300758,0.48115088,34635.0,34633.0,4.6691]
[1625655300877,0.48115088,34635.0,34634.0,0.00487598]
[1625655300998,0.48115088,34635.0,34634.0,0.25929598]
[1625655301119,0.48115088,34635.0,34634.0,5.0101883]
[1625655302198,0.48115088,34635.0,34634.0,3.64791451]
[1625655302443,0.98749717,34635.0,34634.0,3.64791451]
[1625655302680,2.67409643,34635.0,34634.0,1.44214308]
[1625655302802,2.67409643,34635.0,34634.0,1.18772308]
[1625655303161,3.85461453,34635.0,34634.0,0.50902418]
[1625655303700,2.67409643,34635.0,34634.0,0.50902418]
[1625655304362,2.67409643,34635.0,34634.0,1.18774013]
[1625655304603,2.67409643,34635.0,34634.0,0.50902418]
[1625655304903,3.85516303,34635.0,34634.0,0.50902418]
[1625655305144,2.67409643,34635.0,34634.0,1.18772902]
[1625655305324,2.67409643,34635.0,34634.0,2.20567416]
[1625655305985,2.67409643,34635.0,34634.0,0.50902418]
[1625655306467,3.85539688,34635.0,34633.0,5.17807501]
[1625655306707,2.19407471,34634.0,34633.0,5.17807501]
[1625655307733,2.19407471,34634.0,34633.0,6.87948862]
[1625655307973,1.18148974,34634.0,34633.0,6.87948862]
[1625655308811,0.50637685,34634.0,34633.0,8.06700991]
[1625655309411,0.50637685,34634.0,34633.0,8.21040991]
[1625655310013,1.66629021,34635.0,34633.0,8.21040991]
[1625655310315,1.1582286,34635.0,34634.0,2.20518933]
[1625655310495,1.66672771,34635.0,34634.0,2.21006283]
[1625655310796,2.68363334,34635.0,34634.0,2.21006283]
[1625655311456,2.68363334,34635.0,34634.0,1.19228314]
[1625655311876,2.68363334,34635.0,34634.0,1.18740964]
[1625655311996,2.68363334,34635.0,34634.0,1.19228553]
[1625655314701,2.69690346,34635.0,34634.0,1.19228553]
[1625655315905,2.90947346,34635.0,34634.0,1.19228553]
[1625655316028,4.09596641,34635.0,34634.0,0.51376574]
[1625655316263,4.09596641,34635.0,34633.0,4.283e-05]
[1625655316383,5.0852,34634.0,34633.0,4.283e-05]
[1625655316565,5.0852,34634.0,34633.0,0.00487628]
[1625655316566,5.09847117,34634.0,34633.0,0.00487628]
[1625655316863,8.65471561,34634.0,34633.0,0.00487628]
[1625655317344,8.65471561,34634.0,34632.0,0.00487706]
[1625655317585,3.55578002,34633.0,34630.0,0.16966361]
[1625655317706,0.48115088,34631.0,34630.0,0.16966361]
[1625655317832,4.03547478,34631.0,34629.0,0.16969103]
[1625655318068,3.55349983,34630.0,34628.0,0.16969366]
[1625655318306,2.19978182,34629.0,34628.0,9.366e-05]
[1625655318606,2.21305009,34629.0,34628.0,9.366e-05]
[1625655318786,2.21305009,34629.0,34626.0,0.00487761]
[1625655319027,1.01589663,34627.0,34626.0,0.00487761]
[1625655319151,1.24703663,34627.0,34626.0,0.00487761]
[1625655319269,2.43235279,34627.0,34626.0,0.00487761]
[1625655319449,6.03152109,34627.0,34625.0,1.02312675]
[1625655319571,6.01825279,34627.0,34626.0,0.00487768]
[1625655319812,6.49940367,34627.0,34626.0,0.00487768]
[1625655319929,6.51267236,34627.0,34625.0,0.00487785]
[1625655320169,2.20032334,34626.0,34623.0,1.01830783]
[1625655320475,1.015575,34624.0,34623.0,1.01830783]
[1625655320957,1.015575,34624.0,34623.0,1.02318554]
[1625655321079,1.015575,34624.0,34623.0,5.96528554]
[1625655321197,1.01605542,34626.0,34623.0,7.15337585]
[1625655321440,1.01605542,34626.0,34625.0,1.01836153]
[1625655321739,1.01605542,34626.0,34625.0,1.02323905]
[1625655322644,4.06705088,34627.0,34625.0,0.00487752]
[1625655322943,5.08356155,34627.0,34626.0,1.01833775]
[1625655323244,1.49766155,34627.0,34626.0,1.01833775]
[1625655323362,1.49766155,34627.0,34626.0,1.02321498]
[1625655325527,0.48115088,34627.0,34626.0,1.02321498]
[1625655325712,1.49784675,34627.0,34626.0,1.02321498]
[1625655326550,0.48115088,34627.0,34626.0,2.21150362]
[1625655326674,0.48115088,34627.0,34626.0,2.47074362]
[1625655327271,0.48115088,34627.0,34626.0,3.8288122]
[1625655327751,0.48115088,34627.0,34626.0,5.35667455]
[1625655328473,0.48115088,34627.0,34626.0,3.8288122]
[1625655332020,1.49886435,34627.0,34626.0,2.47074362]
[1625655332140,1.49886435,34627.0,34626.0,2.21150362]
[1625655333523,1.49886435,34627.0,34626.0,2.20662639]
[1625655333707,1.49886435,34627.0,34626.0,3.57090143]
[1625655334723,0.48115088,34627.0,34626.0,3.57090143]
[1625655334843,0.48115088,34627.0,34626.0,3.88438143]
[1625655335623,0.48115088,34627.0,34626.0,3.8795071]
[1625655335864,0.48115088,34627.0,34626.0,3.88438105]
[1625655335983,0.48115088,34627.0,34626.0,5.41395153]
[1625655336528,0.48115088,34627.0,34626.0,3.88438105]
[1625655338808,1.49984973,34627.0,34626.0,3.88438105]
[1625655339409,1.49984973,34627.0,34626.0,2.52498034]
[1625655339588,1.49984973,34627.0,34626.0,3.88497964]
[1625655340674,0.48115088,34627.0,34626.0,3.88497964]
[1625655342112,0.48115088,34627.0,34626.0,5.41507378]
[1625655344515,0.48115088,34627.0,34626.0,5.41019983]
[1625655344758,0.48115088,34627.0,34626.0,5.41506854]
[1625655346025,0.40915088,34627.0,34626.0,5.41506854]
[1625655346201,0.40915088,34627.0,34626.0,6.33224542]
[1625655346319,0.40915088,34627.0,34626.0,8.03093219]
[1625655347585,0.24057544,34631.0,34626.0,8.03093219]
[1625655347826,0.24057544,34631.0,34630.0,5.09329553]
[1625655348188,0.24057544,34631.0,34630.0,5.33873864]
[1625655348850,0.24057544,34631.0,34630.0,9.88353864]
[1625655350109,0.48115088,34631.0,34630.0,9.88353864]
[1625655352038,0.56631718,34631.0,34630.0,9.88353864]
[1625655352517,0.48115088,34631.0,34630.0,9.88353864]
[1625655352818,0.56631782,34631.0,34630.0,9.88353864]
[1625655354687,0.48115088,34631.0,34630.0,9.88353864]
[1625655355468,0.48115088,34631.0,34630.0,8.35554998]
[1625655356307,1.50128297,34631.0,34630.0,8.35554998]
[1625655357088,2.6912495,34631.0,34630.0,6.99733784]
[1625655358232,2.6912495,34631.0,34630.0,2.45253784]
[1625655358473,4.05116016,34631.0,34630.0,1.26410222]
[1625655358593,4.05116016,34631.0,34630.0,1.01865911]
[1625655359073,8.99796016,34631.0,34630.0,1.01865911]
[1625655359433,8.99796016,34631.0,34629.0,1.02007638]
[1625655359736,3.56916149,34630.0,34629.0,1.02007638]
[1625655359914,3.90303149,34630.0,34629.0,1.02007638]
[1625655360333,3.90303149,34630.0,34629.0,1.02494841]
[1625655360876,3.90303149,34630.0,34629.0,1.02007638]
[1625655362500,3.90303149,34630.0,34629.0,1.02494845]
[1625655363041,3.90303149,34630.0,34629.0,1.02007638]
[1625655363282,3.90303149,34630.0,34629.0,1.02494845]
[1625655363761,3.90303149,34630.0,34629.0,1.02007638]
[1625655364062,3.90303149,34630.0,34629.0,1.02494844]
[1625655364663,2.5433752,34630.0,34629.0,2.21499873]
[1625655364784,2.2095052,34630.0,34629.0,2.21499873]
[1625655365686,2.2095052,34630.0,34629.0,2.50170873]
[1625655365864,1.0197847,34630.0,34629.0,3.86090308]
[1625655368090,2.2100255,34630.0,34629.0,2.50170873]